Cogmind - Beta 12 @@@ ROGUE MODE // 2024.01.12 @ 15:52:01 Player: puppuppit Result: Destroyed by as-45389 with Assembled Heavy Rifle Performance ------------- Evolutions (0) 0 Regions Visited (2) 400 Robots Destroyed (34) 170 Value Destroyed (798) 798 Prototype IDs (5) 100 Alien Tech Used (0) 0 Bonus (0) 0 TOTAL SCORE: 1468 Bonus ------- None Cogmind --------- Core Integrity 0/250 Matter 244/300 Energy 158/160 System Corruption 2% Temperature Cool (0) Movement Rolling (80) Location -10/Mines Parts ------- > --- POWER (1) -------- Light Nuclear Core > --- PROPULSION (2) --- Wheel Wheel > --- UTILITY (2) ------ Small Storage Unit Improved Targeting Computer > --- WEAPON (2) ------- Bore Cannon > --- INVENTORY (8) ---- Light Ion Engine Light Ion Engine Compact Wheel Hover Unit Medium Matter Pod (100) Signal Interpreter Improved Targeting Computer Peak State ------------ > --- POWER ------------ Light Ion Engine > --- PROPULSION ------- Improved Flight Unit Improved Flight Unit > --- UTILITY ---------- Small Storage Unit Improved Terrain Scanner > --- WEAPON ----------- Improved EM Shotgun Small Laser > --- INVENTORY -------- Ion Engine Light Ion Engine Light Ion Engine Compact Wheel Improved Flight Unit Improved Flight Unit Improved Terrain Scanner Assault Rifle [Rating: 16] Favorites ----------- Power Light Ion Engine Engine Light Ion Engine Power Core Light Nuclear Core Propulsion Improved Flight Unit Wheel Wheel Hover Unit Hover Unit Flight Unit Improved Flight Unit Utility Small Storage Unit Device Improved Terrain Scanner Storage Small Storage Unit Processor Improved Targeting Computer Hackware Hacking Suite Weapon Autogun Energy Gun Small Laser Ballistic Gun Autogun Ballistic Cannon Bore Cannon Build | -11 -10 -10 ------- Run | Jun Mat Min Slots Evolved . | . . . Power . | . . . Propulsion . | . . . Utility . | . . . Weapon . | . . . Parts Attached 39 | 9 21 9 Power 5 | 1 3 1 Engine 4 | 1 3 . Core 1 | . . 1 Reactor . | . . . Propulsion 10 | 4 4 2 Treads . | . . . Leg . | . . . Wheel 6 | 4 . 2 Hover 2 | . 2 . Flight 2 | . 2 . Utility 7 | 2 5 . Device 1 | 1 . . Storage 3 | 1 2 . Processor 2 | . 2 . Hackware 1 | . 1 . Protection . | . . . Artifact . | . . . Weapon 17 | 2 9 6 Energy Gun 10 | 2 8 . Energy Cannon . | . . . Ballistic Gun 6 | . 1 5 Ballistic Cannon 1 | . . 1 Launcher . | . . . Special Weapon . | . . . Impact Weapon . | . . . Slashing Weapon . | . . . Piercing Weapon . | . . . Special Melee Weapon . | . . . Unidentified Prototypes 2 | . 2 . Parts Lost 6 | . 4 2 Power 2 | . 2 . Propulsion 1 | . . 1 Utility 1 | . 1 . Weapon 2 | . 1 1 Highest Loss Streak 3 | . 3 2 To Critical Strikes . | . . . Average Slot Usage (%) 85 | . 87 82 Engine 5 | . 8 . Core 1 | . . 5 Wheel 5 | . 2 12 Hover 7 | . 4 12 Flight 14 | . 20 . Device 2 | . 3 . Storage 14 | . 14 14 Processor 8 | . 6 14 Hackware 2 | . 3 . Energy Gun 13 | . 17 4 Ballistic Gun 7 | . 5 12 Ballistic Cannon 1 | . . 4 Naked Turns . | . . . Heaviest Build 19 | 12 13 19 Greatest Support 26 | 26 20 20 Greatest Overweight (x) 2 | . 2 . Average Overweight (x) . | . . . Largest Inventory Capacity 8 | 8 8 8 Average Capacity 7 | 7 8 8 Most Carried 8 | 8 8 7 Average Carried 6 | 3 7 5 Final Capacity 8 | 8 8 8 Final Carried 8 | 8 6 7 Class Distribution -------------------- 100% | Mutant Dominant Class ---------------- Mutant | -10/Materials Mutant | -10/Mines Resources | -11 -10 -10 ----------- Run | Jun Mat Min Matter Collected 883 | 290 374 219 Remotely . | . . . Salvage Created 1267 | 197 718 352 Parts 70 | 10 37 23 Haulers Intercepted 2 | . 2 . Recyclers Shooed . | . . . Parts Field Recycled . | . . . Retrieved Matter . | . . . Parts Self-Destructed . | . . . Prevented . | . . . Kills | -11 -10 -10 ------- Run | Jun Mat Min Combat Hostiles Destroyed 18 | . 12 6 Guns 16 | . 11 5 AOE 2 | . 1 1 Classes Destroyed 8 | 2 6 . Worker 2 | . 1 1 Builder 2 | . 1 1 Tunneler 5 | 4 . 1 Hauler 2 | . 2 . Recycler 2 | 1 . 1 Operator 1 | . 1 . Watcher 2 | . 2 . Grunt 18 | . 12 6 Best Kill Streak 7 | 4 5 7 Combat Bots Only 4 | . 3 4 Max Kills in Single Turn 2 | 1 1 2 Gunslinging . | . . . Exploded 1 | . 1 1 Melee . | . . . Uniques/NPCs Destroyed . | . . . Combat | -11 -10 -10 -------- Run | Jun Mat Min Damage Taken 955 | . 624 331 Core 261 | . 165 96 Absorbed by Shields . | . . . Core Remaining (%) 100 | 100 . . Volleys Fired 101 | 11 59 31 Largest 2 | 2 2 2 Hottest 85 | 80 85 73 Shots Fired 188 | 22 106 60 Gun 186 | 22 106 58 Cannon 2 | . . 2 Launcher . | . . . Special . | . . . Kinetic 64 | . 21 43 Thermal 86 | 11 58 17 Explosive . | . . . Electromagnetic 38 | 11 27 . Robot Hit Streak 13 | 5 13 8 Robot Miss Streak 4 | 3 3 4 Penetration Max 1 | . . 1 Secondary Targets 2 | . 2 . Max Gunslinging Chain 1 | . 1 . Shots Hit Robots 127 | 14 80 33 Core Hits 52 | 6 31 15 Critical Kills 2 | . . 2 Critical Parts Destroyed . | . . . Critical Strikes 3 | . 1 2 Burn 1 | . 1 . Destroy 2 | . . 2 Melee Attacks . | . . . Impact . | . . . Slashing . | . . . Piercing . | . . . Sneak Attacks . | . . . Combat Hostiles . | . . . Follow-up Attacks . | . . . Damage Inflicted 2237 | 215 1461 561 Guns 1774 | 174 1097 503 Cannons 58 | . . 58 Explosions 405 | 41 364 . Melee . | . . . Ramming . | . . . Kinetic 686 | . 237 449 Thermal 1087 | 121 854 112 Explosive . | . . . Electromagnetic 464 | 94 370 . Impact . | . . . Slashing . | . . . Piercing . | . . . Highest Corruption 2 | . 2 2 Average Corruption 1 | . 1 2 Corruption Purged . | . . . Corruption Blocked . | . . . Effects 9 | . 2 7 Message Errors 1 | . . 1 Matter Fused 2 | . 1 1 Heat Flow Errors 1 | . . 1 Energy Discharges 3 | . . 3 Data Loss (major) 1 | . . 1 Misfires 1 | . 1 . Overload Shots . | . . . Overflow Damage 185 | . 185 . Projectiles . | . . . Explosions 185 | . 185 . Melee . | . . . Knockbacks . | . . . Impact . | . . . Kinetic . | . . . Secondary . | . . . Self-Inflicted Damage 165 | . 165 . Shots 3 | . 3 . Rammed . | . . . Targets Rammed . | . . . Kicked . | . . . Crushed . | . . . Highest Temperature 306 | 108 306 160 Average Temperature 70 | 39 87 41 Received Heat Transfer 426 | . 249 177 Effects 2 | . 2 . Energy Bleed 1 | . 1 . Interference 1 | . 1 . Siege Activations . | . . . Robots Corrupted . | . . . Combat Hostiles . | . . . Parts Fried 1 | . . 1 Impact Corruptions . | . . . Robots Melted . | . . . Combat Hostiles . | . . . Parts Melted . | . . . Heat Transferred 2198 | 225 1640 333 Parts Sabotaged . | . . . Parts Stolen . | . . . Parts Stripped . | . . . Power Chain Reactions 4 | 1 3 . Missiles Intercepted . | . . . Alert | -11 -10 -10 ------- Run | Jun Mat Min Peak Influence 429 | 25 429 388 Initial 127 | . 16 127 Average 215 | 10 216 296 Maximum Alert Level 2 | . 2 1 Low Security (%) 41 | 100 42 17 Level 1 56 | . 55 82 Level 2 1 | . 2 . Level 3 . | . . . Level 4 . | . . . Level 5 . | . . . High Security . | . . . Max Security . | . . . Squads Dispatched 5 | . 5 . Investigation 5 | . 5 . Extermination . | . . . Reinforcement . | . . . Assault . | . . . Garrison . | . . . Intercept . | . . . Searches Triggered . | . . . Construction Impeded . | . . . Haulers Reinforced . | . . . Active Scanning Responses . | . . . Cargo Convoy Interrupts . | . . . Stealth | -11 -10 -10 --------- Run | Jun Mat Min Distress Signals 1 | . 1 . Communications Jammed . | . . . Distress Signals . | . . . Times Spotted 33 | . 21 12 Peak Tracking Total 5 | . 3 5 Tactical Retreats 6 | . 3 3 Traps | -11 -10 -10 ------- Run | Jun Mat Min Traps Triggered 1 | . 1 . Indirectly . | . . . Trap Hack Attempts . | . . . Triggered . | . . . Disarmed . | . . . Reprogrammed . | . . . Reused . | . . . Traps Extracted . | . . . Installed . | . . . Triggered 2 | . . 2 Machines | -11 -10 -10 ---------- Run | Jun Mat Min Machines Disabled 1 | . 1 . Max in Single Turn 1 | . 1 . Machines Repaired . | . . . Machines Sabotaged . | . . . Overloaded Fab Kills . | . . . Hacking | -11 -10 -10 --------- Run | Jun Mat Min Machines Accessed 7 | . 7 . Terminals 7 | . 7 . Fabricators . | . . . Repair Stations . | . . . Recycling Units . | . . . Scanalyzers . | . . . Garrison Access . | . . . Total Hacks 30 | . 30 . Successful 19 | . 19 . Failed 10 | . 10 . Catastrophic . | . . . Database Lockouts 1 | . 1 . Manual 6 | . 6 . Terminals 30 | . 30 . Fabricators . | . . . Repair Stations . | . . . Recycling Units . | . . . Scanalyzers . | . . . Garrison Access . | . . . Terminal Hacks 19 | . 19 . Record 3 | . 3 . Robot Analysis 4 | . 4 . Prototype ID Bank 3 | . 3 . Branch Access Points 1 | . 1 . Emergency Access Points 1 | . 1 . Locate Traps 1 | . 1 . Dispatch Records 1 | . 1 . Investigation Status 1 | . 1 . Recall Investigation 1 | . 1 . Hauler Manifests 1 | . 1 . Registered Prototypes 1 | . 1 . Zone Layout 1 | . 1 . Fabricator Hacks . | . . . Repair Station Hacks . | . . . Recycling Unit Hacks . | . . . Scanalyzer . | . . . Garrison Access Hacks . | . . . Unauthorized Hacks . | . . . Terminals . | . . . Fabricators . | . . . Repair Stations . | . . . Recycling Units . | . . . Scanalyzers . | . . . Garrison Access . | . . . Data Cores Recovered 1 | . 1 . Used 1 | . 1 . Hacking Detections 7 | . 7 . Full Trace Events 7 | . 7 . Feedback Events 1 | . 1 . Corruption 1 | . 1 . Feedback Blocked . | . . . Robot Schematics Acquired . | . . . Robots Built . | . . . Authchips . | . . . Time . | . . . Total Robot Build Rating . | . . . Part Schematics Acquired . | . . . Parts Built . | . . . Authchips . | . . . Time . | . . . Total Part Build Rating . | . . . Parts Repaired . | . . . Time . | . . . Parts Recycled . | . . . Recycled Matter . | . . . Retrieved Matter . | . . . Retrieved Components . | . . . Parts Scanalyzed . | . . . Part Schematics Acquired . | . . . Parts Damaged . | . . . Bothacking | -11 -10 -10 ------------ Run | Jun Mat Min Used RIF Installer . | . . . Robots Hacked . | . . . Non-combat . | . . . Combat . | . . . Robot Hacks Applied . | . . . Relay Couplers Released . | . . . Fabnet Peak Effective % . | . . . Robots Rewired . | . . . Allies Hacked . | . . . Hacks Repelled . | . . . Allies | -11 -10 -10 -------- Run | Jun Mat Min Total Allies . | . . . Largest Group . | . . . Highest-Rated Group . | . . . Highest-Rated Ally . | . . . Total Orders . | . . . Ally Attacks . | . . . Total Damage . | . . . Kills . | . . . Allies Corrupted . | . . . Allies Melted . | . . . Intel | -11 -10 -10 ------- Run | Jun Mat Min Robot Analysis Total 4 | . 4 . Derelict Logs Recovered . | . . . Drone Launches . | . . . Drone Recoveries . | . . . Exploration | -11 -10 -10 ------------- Run | Jun Mat Min Turns Passed 907 | 108 532 267 Spaces Moved 930 | 62 652 216 Core 2 | 2 . . Treads . | . . . Legs . | . . . Wheels 226 | 60 33 133 Hover 208 | . 125 83 Flight 494 | . 494 . Fastest Speed 37 | 50 37 56 Average Speed 52 | 84 43 71 Slowest Speed 180 | 90 180 80 Overloaded Moves . | . . . Propulsion Burnouts . | . . . Robots Hopped . | . . . Cave-ins Triggered . | . . . Exploration Rate (%) 37 | 3 78 31 Regions Visited 2 Branch Regions 1 Pre-discovered Areas . | . . . Known Exits Taken 1 | . 1 . Unknown Exits Taken 1 | 1 . . Scrap Searched . | . . . Spaces Dug . | . . . Terrain Destroyed 43 | 7 35 1 Melee . | . . . Projectile 1 | . . 1 AOE 42 | 7 35 . Terrain Rammed . | . . . Walls Destroyed . | . . . Machines Disabled . | . . . Actions | -11 -10 -10 --------- Run | Jun Mat Min Total 1178 | 91 807 280 Wait 50 | 1 36 13 Move 928 | 61 651 216 Hop . | . . . Pick Up 23 | 8 12 3 Fast Attach 20 | 7 9 4 Attach 14 | . 9 5 Detach 12 | . 8 4 Swap 5 | 2 3 . Drop 25 | 1 20 4 Fire 101 | 11 59 31 Melee . | . . . Ram . | . . . Kick . | . . . Crush . | . . . Escape Stasis . | . . . Rewire . | . . . Trap . | . . . Miscellaneous . | . . . Route ------- -11/Junkyard -10/Materials (discovered 4 exits: [*Mat x2] / *Min x2) -10/Mines (discovered 2 exits: [*Mat x2]) History --------- Turn | Location | Event 5 | -11/Junkyard | Discovered new exit (range 15) 109 | -11/Junkyard | Entered Materials 244 | -10/Materials | Discovered new exit (range 14) 262 | -10/Materials | Discovered new exit (range 9) 325 | -10/Materials | Discovered new exit (range 12) 351 | -10/Materials | Build established: Mutant 362 | -10/Materials | Identified exit to Mines 381 | -10/Materials | Core integrity fell below 50% 413 | -10/Materials | Central database locked down 414 | -10/Materials | Lost 3 parts (1p1u1w) 641 | -10/Materials | Entered Mines 649 | -10/Mines | Discovered new exit (range 13) 736 | -10/Mines | Core integrity fell below 20% 811 | -10/Mines | A weapon hastily lodged in a ceiling crevice suddenly fell to the ground 830 | -10/Mines | Discovered new exit (range 7) 877 | -10/Mines | Assembled infested the area 882 | -10/Mines | Assisted by a Guerilla fighting off Assembled 908 | -10/Mines | Destroyed by as-45389 with Assembled Heavy Rifle Last Messages --------------- 00803_ U-05 Engineer lays Concrete. 00805_ K-01 Serf collects debris. 00811_ A Bore Cannon has been hastily shoved under some rubble with a note attached: "Boring, it is not. Although I admit enemies do get bored, for sure." 00813_ Dropped Autogun. 00813_ Acquired Bore Cannon. 00815_ Dropped Autogun. 00824_ System corrupted: Energy discharge (-43). 00830_ EXIT=FOUND 00877_ ALERT: Infestation in the mines, dispatching Demolisher response squad. 00887_ 5C-ZVO(h) exits level. 00891_ System corrupted: Energy discharge (-44). 00900_ HV Slug penetrates Wall. 00904_ HV Slug penetrates U-05 Engineer. 00904_ U-05 Engineer suffers critical hit (Destroy). 00904_ U-05 Engineer destroyed. 00904_ HV Slug penetrates K-01 Serf. 00904_ K-01 Serf suffers critical hit (Destroy). 00904_ K-01 Serf destroyed. 00907_ Acquired Lgt. Ion Engine. Map ----- +----------------------------------------------------+ | | | | | | | ??????????????????????????????? | | ????????######????????????????? | | ????????# ##?????####??????? | | ????????# ##???## ##?????? | | ????????## ##### #?????? | | ##???????## #?????? | | ##???##??# ##?????? | | " ?#"##?# ##??????? | | ###" ### ##???????? | | % < ## ##????????? | | #=## #### #?????????? | | # ###?## #?????????? | | # # ##?### ##????????? | | # ####?## ######???? | | % #???## #???? | | #######???# #######=#???? | | #?????????# #??????#!#???? | | !#?????????## ##??????#%#???? | | #??????????## ###?????#%#???? | | #???######### #######!#???? | | *#??## %=#???? | | !!##?# [[ ######%#???? | | [ #?# ##???##@#???? | | = ### #????#; #???? | | ##???## ##??? | | # ##????# #??? | | # ##????## #??? | | # #####?## < #??? | | ## ####### #?# #??? | | ?# ##?????# # ###a #??? | | ?# #??????# # #??? | | ? #?????? ?####### ##??? | | ##????? ???????#####???? | | ####?????# ????????????????? | | ###????????# ????????????????? | | #???????????#?????????????????? | | ??????????????????????????????? | | ??????????????????????????????? | | ??????????????????????????????? | | ??????????????????????????????? | | ??????????????????????????????? | | ??????????????????????????????? | | ??????????????????????????????? | | ??????????????????????????????? | | ??????????????????????????????? | | ??????????????????????????????? | | ??????????????????????????????? | +----------------------------------------------------+ Best States ------------- Heat Dissipation 25 Energy Generation 14 Energy Capacity 160 Matter Stores 300 Matter Capacity 300 Sight Range 16 Terrain Scan Range 16 Terrain Scan Density 10 Evasion (%) 62 Targeting Accuracy 6 Offensive Hacking 10 Item Schematics ----------------- None Robot Schematics ------------------ None Fabricated ------------ Nothing Alien Tech Used ----------------- None Achievements -------------- None Challenges ------------ None Game ------ Seed TargetAbsorptionKit Manual? 0 Play Time 00:21:22 Cumulative 51.5 hours Start 2024.01.12 @ 15:32:57 End 2024.01.12 @ 15:52:01 Sessions 1 Manual Loads 0 Difficulty Rogue Special Mode None Game No. 29 Rogue 29 Adventurer 0 Explorer 0 Win Type - Total 0 Types 0/0/0/0/0/0/0/0/0 Lore% 49 Gallery% 47 Achievement% 38 Wizard Run 0 Options --------- ASCII 0 Keyboard 1 Movement Arrows Keybinds 0 Fullscreen 1 Font 12/Proggy Map View 83x54 Tactical HUD 1 Map Filters NONE Filters NONE Steam 0 RUN: 01934d00-d6cf-4192-a564-10e8f5fe491a